fUSD/lending_fUSD_20240617
["ID","MTS","AMOUNT","RATE_DAILY","PERIOD"]
[329762101,1718652673442,-500.0,0.00022739,3]
[329762102,1718652673452,-500.0,0.00022739,3]
[329762103,1718652673463,-500.0,0.00022739,3]
[329762104,1718652673472,-500.0,0.00022739,3]
[329762105,1718652673482,-763.12,0.00022739,3]
[329762106,1718652673496,-500.0,0.00022739,3]
[329762107,1718652673505,-644.45,0.00022739,3]
[329762108,1718652673515,-630.9,0.00022739,3]
[329762109,1718652673524,-500.0,0.00022739,3]
[329762110,1718652673534,-500.0,0.00022739,3]
[329762111,1718652673543,-1386.86,0.00022739,3]
[329762112,1718652673553,-524.6131496,0.00022739,3]
[329762113,1718652673562,-554.33,0.00022739,3]
[329762114,1718652673571,-514.22,0.00022739,3]
[329762115,1718652673581,-500.0,0.00022739,3]
[329762116,1718652673591,-534.93,0.00022739,3]
[329762117,1718652673600,-786.15,0.00022739,3]
[329762118,1718652673609,-500.0,0.00022739,3]
[329762119,1718652673619,-1983.24,0.00022739,3]
[329762120,1718652673629,-500.0,0.00022739,3]
[329762121,1718652673639,-500.0,0.00022739,3]
[329762122,1718652673648,-520.35730591,0.00022739,3]
[329762123,1718652673658,-1097.58,0.00022739,3]
[329762124,1718652673667,-1147.04,0.00022739,3]
[329762125,1718652673676,-500.0,0.00022739,3]
[329762126,1718652673686,-554.42,0.00022739,3]
[329762127,1718652673695,-500.0,0.00022739,3]
[329762128,1718652673705,-500.0,0.00022739,3]
[329762129,1718652673715,-561.24,0.00022739,3]
[329762130,1718652673724,-577.78,0.00022739,3]
[329762131,1718652673734,-1143.27,0.00022739,3]
[329762132,1718652673747,-910.56,0.00022739,3]
[329762133,1718652673756,-770.4,0.00022739,3]
[329762134,1718652673767,-603.38,0.00022739,3]
[329762135,1718652673776,-500.0,0.00022739,3]
[329762136,1718652673787,-696.12,0.00022739,3]
[329762137,1718652673797,-778.09,0.00022739,3]
[329762138,1718652673807,-1915.37,0.00022739,3]
[329762139,1718652673817,-930.78,0.00022739,3]
[329762140,1718652673827,-621.18,0.00022739,3]
[329762141,1718652673836,-1190.12,0.00022739,3]
[329762142,1718652673846,-500.0,0.00022739,3]
[329762143,1718652673856,-1732.48,0.00022739,3]
[329762144,1718652673866,-2133.93,0.00022739,3]
[329762145,1718652673876,-839.74,0.00022739,3]
[329762146,1718652673885,-626.52,0.00022739,3]
[329762147,1718652673895,-500.0,0.00022739,3]
[329762148,1718652673905,-191.420288,0.00022739,7]
[329762149,1718652673914,-191.420288,0.00022739,7]
[329762150,1718652673924,-840.91,0.00022739,3]
[329762151,1718652673934,-1247.93,0.00022739,3]
[329762152,1718652673944,-793.24,0.00022739,3]
[329762153,1718652673953,-500.0,0.00022739,3]
[329762154,1718652673962,-191.420288,0.00022739,7]
[329762155,1718652673972,-500.0,0.00022739,3]
[329762156,1718652673982,-191.420288,0.00022739,7]
[329762157,1718652673994,-906.63,0.00022739,3]
[329762158,1718652674003,-643.55,0.00022739,3]
[329762159,1718652674014,-1539.7,0.00022739,3]
[329762160,1718652674024,-613.65,0.00022739,3]
[329762161,1718652674034,-500.0,0.00022739,3]
[329762162,1718652674044,-1225.58,0.00022739,3]
[329762163,1718652674054,-500.0,0.00022739,3]
[329762164,1718652674064,-538.53045129,0.00022739,3]
[329762165,1718652674074,-500.0,0.00022739,3]
[329762166,1718652674084,-500.0,0.00022739,3]
[329762167,1718652674094,-500.0,0.00022739,3]
[329762168,1718652674103,-500.0,0.00022739,3]
[329762169,1718652674113,-846.3,0.00022739,3]
[329762170,1718652674123,-1242.09,0.00022739,3]
[329762171,1718652674132,-624.98504901,0.00022739,3]
[329762172,1718652674143,-595.99,0.00022739,3]
[329762173,1718652674153,-2097.06,0.00022739,3]
[329762174,1718652674167,-509.54,0.00022739,3]
[329762175,1718652674177,-500.0,0.00022739,3]
[329762176,1718652674187,-500.0,0.00022739,3]
[329762177,1718652674197,-500.0,0.00022739,3]
[329762178,1718652674206,-500.0,0.00022739,3]
[329762179,1718652674216,-500.0,0.00022739,3]
[329762180,1718652674226,-500.0,0.00022739,3]
[329762181,1718652674238,-728.76,0.00022739,3]
[329762182,1718652674251,-512.83,0.00022739,3]
[329762183,1718652674261,-500.0,0.00022739,3]
[329762184,1718652674270,-500.0,0.00022739,3]
[329762185,1718652674279,-1509.67,0.00022739,3]
[329762186,1718652674289,-586.02,0.00022739,3]
[329762187,1718652674299,-644.85,0.00022739,3]
[329762188,1718652674308,-746.52,0.00022739,3]
[329762189,1718652674318,-500.0,0.00022739,3]
[329762190,1718652674328,-757.33,0.00022739,3]
[329762191,1718652674337,-500.0,0.00022739,3]
[329762192,1718652674347,-500.0,0.00022739,3]
[329762193,1718652674356,-788.83,0.00022739,3]
[329762194,1718652674366,-1979.61,0.00022739,3]
[329762195,1718652674376,-726.23,0.00022739,3]
[329762196,1718652674385,-842.77,0.00022739,3]
[329762197,1718652674395,-500.0,0.00022739,3]
[329762198,1718652674405,-500.0,0.00022739,3]
[329762199,1718652674414,-500.0,0.00022739,3]
[329762200,1718652674423,-1240.83,0.00022739,3]
[329762201,1718652674433,-804.99,0.00022739,3]
[329762202,1718652674442,-976.42,0.00022739,3]
[329762203,1718652674452,-500.0,0.00022739,3]
[329762204,1718652674461,-1124.22,0.00022739,3]
[329762205,1718652674472,-632.88,0.00022739,3]
[329762206,1718652674481,-500.0,0.00022739,3]
[329762207,1718652674491,-500.0,0.00022739,3]
[329762208,1718652674503,-500.0,0.00022739,3]
[329762209,1718652674512,-529.8,0.00022739,3]
[329762210,1718652674522,-778.18,0.00022739,3]
[329762211,1718652674531,-1518.29,0.00022739,3]
[329762212,1718652674540,-1175.8,0.00022739,3]
[329762213,1718652674550,-1596.05,0.00022739,3]
[329762214,1718652674559,-500.0,0.00022739,3]
[329762215,1718652674569,-700.12,0.00022739,3]
[329762216,1718652674578,-611.11,0.00022739,3]
[329762217,1718652674588,-500.0,0.00022739,3]
[329762218,1718652674598,-702.29,0.00022739,3]
[329762219,1718652674608,-635.74,0.00022739,3]
[329762220,1718652674618,-1944.19,0.00022739,3]
[329762221,1718652674628,-2176.46,0.00022739,3]
[329762222,1718652674637,-686.57,0.00022739,3]
[329762223,1718652674647,-500.0,0.00022739,3]
[329762224,1718652674656,-720.14,0.00022739,3]
[329762225,1718652674666,-500.0,0.00022739,3]
[329762226,1718652674676,-797.35,0.00022739,3]
[329762227,1718652674685,-1218.7,0.00022739,3]
[329762228,1718652674695,-500.0,0.00022739,3]
[329762229,1718652674705,-500.0,0.00022739,3]
[329762230,1718652674715,-500.0,0.00022739,3]
[329762231,1718652674725,-500.0,0.00022739,3]
[329762232,1718652674734,-500.0,0.00022739,3]
[329762233,1718652674745,-585.09,0.00022739,3]
[329762234,1718652674755,-500.0,0.00022739,2]
[329762235,1718652674764,-500.0,0.00022739,3]
[329762236,1718652674774,-500.0,0.00022739,3]
[329762237,1718652674784,-500.0,0.00022739,3]
[329762238,1718652674794,-500.0,0.00022739,3]
[329762239,1718652674804,-500.0,0.00022739,3]
[329762240,1718652674814,-500.0,0.00022739,3]
[329762241,1718652674824,-504.77,0.00022739,3]
[329762242,1718652674834,-500.0,0.00022739,3]
[329762243,1718652674843,-500.0,0.00022739,3]
[329762244,1718652674853,-500.0,0.00022739,3]
[329762245,1718652674862,-1895.22,0.00022739,3]
[329762246,1718652674872,-576.77,0.00022739,3]
[329762247,1718652674881,-744.23,0.00022739,3]
[329762248,1718652674891,-500.0,0.00022739,3]
[329762249,1718652674900,-1195.23,0.00022739,3]
[329762250,1718652674910,-2493.77,0.00022739,3]
[329762251,1718652674919,-500.0,0.00022739,3]
[329762252,1718652674929,-500.0,0.00022739,3]
[329762253,1718652674939,-500.0,0.00022739,3]
[329762254,1718652674948,-1394.33,0.00022739,3]
[329762255,1718652674958,-660.73,0.00022739,3]
[329762256,1718652674967,-500.0,0.00022739,3]
[329762257,1718652674977,-779.18,0.00022739,3]
[329762258,1718652674986,-2496.73,0.00022739,3]
[329762259,1718652674997,-841.02,0.00022739,3]
[329762260,1718652675007,-1691.29,0.00022739,3]
[329762261,1718652675018,-500.0,0.00022739,3]
[329762262,1718652675028,-500.0,0.00022739,3]
[329762263,1718652675038,-500.0,0.00022739,3]
[329762264,1718652675048,-962.56,0.00022739,3]
[329762265,1718652675057,-984.47,0.00022739,3]
[329762266,1718652675067,-500.0,0.00022739,3]
[329762267,1718652675077,-8006.12,0.00022739,3]
[329762268,1718652675087,-500.0,0.00022739,3]
[329762269,1718652675097,-500.0,0.00022739,3]
[329762270,1718652675106,-996.59,0.00022739,3]
[329762271,1718652675116,-647.06,0.00022739,3]
[329762272,1718652675126,-500.0,0.00022739,3]
[329762273,1718652675135,-500.0,0.00022739,3]
[329762274,1718652675147,-500.0,0.00022739,3]
[329762275,1718652675159,-845.41,0.00022739,3]
[329762276,1718652675168,-759.12,0.00022739,3]
[329762277,1718652675178,-1274.75,0.00022739,3]
[329762278,1718652675190,-1612.71,0.00022739,3]
[329762279,1718652675200,-500.0,0.00022739,3]
[329762280,1718652675391,-516.39,0.00022739,3]
[329762281,1718652675402,-994.46,0.00022739,3]
[329762282,1718652675412,-794.97,0.00022739,3]
[329762283,1718652675421,-690.88,0.00022739,3]
[329762284,1718652675431,-18758.5,0.00022739,3]
[329762285,1718652675440,-500.0,0.00022739,3]
[329762286,1718652675450,-808.05,0.00022739,3]
[329762287,1718652675459,-500.0,0.00022739,3]
[329762288,1718652675469,-500.0,0.00022739,3]
[329762289,1718652675478,-602.4,0.00022739,3]
[329762290,1718652675488,-8967.32,0.00022739,3]
[329762291,1718652675499,-2088.95,0.00022739,3]
[329762292,1718652675508,-151.0,0.00022739,7]
[329762293,1718652675518,-151.0,0.00022739,7]
[329762294,1718652675527,-500.0,0.00022739,3]
[329762295,1718652675536,-500.0,0.00022739,3]
[329762296,1718652675546,-770.66,0.00022739,3]
[329762297,1718652675555,-5212.99,0.00022739,3]
[329762298,1718652675565,-500.0,0.00022739,3]
[329762299,1718652675575,-1582.6,0.00022739,3]
[329762300,1718652675584,-8919.79,0.00022739,3]
[329762301,1718652675594,-500.0,0.00022739,3]
[329762302,1718652675603,-999.13,0.00022739,3]
[329762303,1718652675612,-548.78,0.00022739,3]
[329762304,1718652675622,-1683.88,0.00022739,3]
[329762305,1718652675632,-6483.32,0.00022739,3]
[329762306,1718652675642,-500.0,0.00022739,3]
[329762307,1718652675651,-601.17,0.00022739,3]
[329762308,1718652675661,-2464.23,0.00022739,3]
[329762309,1718652675671,-1042.4,0.00022739,3]
[329762310,1718652675680,-4290.28,0.00022739,3]
[329762311,1718652675690,-2441.37,0.00022739,3]
[329762312,1718652675700,-500.0,0.00022739,3]
[329762313,1718652675710,-1358.32,0.00022739,3]
[329762314,1718652675720,-500.0,0.00022739,3]
[329762315,1718652675730,-500.0,0.00022739,3]
[329762316,1718652675740,-1327.71,0.00022739,3]
[329762317,1718652675752,-500.0,0.00022739,3]
[329762318,1718652675761,-500.0,0.00022739,3]
[329762319,1718652675770,-500.0,0.00022739,3]
[329762320,1718652675780,-22669.14,0.00022739,3]
[329762321,1718652675790,-500.0,0.00022739,3]
[329762322,1718652675800,-664.86,0.00022739,3]
[329762323,1718652675810,-3262.36,0.00022739,3]
[329762324,1718652675819,-772.29,0.00022739,3]
[329762325,1718652675829,-1526.54,0.00022739,3]
[329762326,1718652675838,-1327.48,0.00022739,3]
[329762327,1718652675848,-500.0,0.00022739,3]
[329762328,1718652675858,-633.27,0.00022739,3]
[329762329,1718652675868,-500.0,0.00022739,3]
[329762330,1718652675878,-58526.9,0.00022739,3]
[329762331,1718652675887,-624.74463755,0.00022739,3]
[329762332,1718652675896,-815.85,0.00022739,3]
[329762333,1718652675907,-1977.73,0.00022739,3]
[329762334,1718652675916,-500.0,0.00022739,3]
[329762335,1718652675926,-936.75,0.00022739,3]
[329762336,1718652675935,-671.14,0.00022739,3]
[329762337,1718652675945,-1035.94,0.00022739,3]
[329762338,1718652675955,-579.97240718,0.00022739,3]
[329762339,1718652675964,-1321.86,0.00022739,3]
[329762340,1718652675974,-552.55,0.00022739,3]
[329762341,1718652675983,-55585.34,0.00022739,3]
[329762342,1718652675994,-500.0,0.00022739,3]
[329762343,1718652676005,-500.0,0.00022739,3]
[329762344,1718652676014,-544.33867869,0.00022739,3]
[329762345,1718652676023,-17921.06,0.00022739,3]
[329762346,1718652676032,-500.0,0.00022739,3]
[329762347,1718652676042,-573.88101197,0.00022739,3]
[329762348,1718652676051,-500.0,0.00022739,3]
[329762349,1718652676061,-500.0,0.00022739,3]
[329762350,1718652676071,-16239.19,0.00022739,3]
[329762351,1718652676080,-500.0,0.00022739,3]
[329762352,1718652676090,-965.28,0.00022739,3]
[329762353,1718652676099,-500.0,0.00022739,3]
[329762354,1718652676109,-2928.19,0.00022739,3]
[329762355,1718652676118,-539.18,0.00022739,3]
[329762356,1718652676127,-2820.46,0.00022739,3]
[329762357,1718652676137,-616.78,0.00022739,3]
[329762358,1718652676147,-500.0,0.00022739,3]
[329762359,1718652676157,-13262.03,0.00022739,3]
[329762360,1718652676169,-1537.25,0.00022739,3]
[329762361,1718652676178,-500.0,0.00022739,3]
[329762362,1718652676187,-500.0,0.00022739,3]
[329762363,1718652676198,-678.15,0.00022739,3]
[329762364,1718652676207,-704.18,0.00022739,3]
[329762365,1718652676216,-500.0,0.00022739,3]
[329762366,1718652676226,-5529.6,0.00022739,3]
[329762367,1718652676237,-882.12,0.00022739,3]
[329762368,1718652676248,-1188.34,0.00022739,3]
[329762369,1718652676258,-1215.98,0.00022739,3]
[329762370,1718652676267,-500.0,0.00022739,3]
[329762371,1718652676277,-625.21,0.00022739,3]
[329762372,1718652676286,-6847.23,0.00022739,3]
[329762373,1718652676296,-577.45,0.00022739,3]
[329762374,1718652676305,-500.0,0.00022739,3]
[329762375,1718652676314,-4702.81,0.00022739,3]
[329762376,1718652676323,-500.0,0.00022739,3]
[329762377,1718652676333,-623.59,0.00022739,3]
[329762378,1718652676342,-3269.6,0.00022739,3]
[329762379,1718652676351,-5877.87,0.00022739,3]
[329762380,1718652676360,-942.8,0.00022739,3]
[329762381,1718652676370,-500.0,0.00022739,3]
[329762382,1718652676379,-9907.14,0.00022739,3]
[329762383,1718652676389,-620.0,0.00022739,3]
[329762384,1718652676398,-1730.07,0.00022739,3]
[329762385,1718652676407,-500.0,0.00022739,3]
[329762386,1718652676417,-2641.72,0.00022739,3]
[329762387,1718652676426,-30089.27,0.00022739,3]
[329762388,1718652676435,-500.0,0.00022739,3]
[329762389,1718652676444,-870.93,0.00022739,3]
[329762390,1718652676453,-751.12,0.00022739,3]
[329762391,1718652676464,-870.03,0.00022739,3]
[329762392,1718652676473,-10013.64,0.00022739,3]
[329762393,1718652676483,-500.0,0.00022739,3]
[329762394,1718652676494,-736.62,0.00022739,3]
[329762395,1718652676503,-1312.09,0.00022739,3]
[329762396,1718652676511,-753.13,0.00022739,3]
[329762397,1718652676520,-729.16,0.00022739,3]
[329762398,1718652676529,-151.0,0.00022739,7]
[329762399,1718652676539,-151.0,0.00022739,7]
[329762400,1718652676549,-3341.53,0.00022739,3]
[329762401,1718652676558,-626.91,0.00022739,3]
[329762402,1718652676567,-2506.18,0.00022739,3]
[329762403,1718652676576,-500.0,0.00022739,3]
[329762404,1718652676586,-552.14051158,0.00022739,3]
[329762405,1718652676595,-652.82,0.00022739,3]
[329762406,1718652676605,-810.75,0.00022739,3]
[329762407,1718652676614,-7839.2,0.00022739,3]
[329762408,1718652676624,-4883.85,0.00022739,3]
[329762409,1718652676633,-13759.65,0.00022739,3]
[329762410,1718652676643,-500.0,0.00022739,3]
[329762411,1718652676652,-500.0,0.00022739,3]
[329762412,1718652676662,-1276.34,0.00022739,3]
[329762413,1718652676675,-500.0,0.00022739,3]
[329762414,1718652676684,-500.0,0.00022739,3]
[329762415,1718652676694,-665.33,0.00022739,3]
[329762416,1718652676704,-3184.31,0.00022739,3]
[329762417,1718652676713,-1888.37,0.00022739,3]
[329762418,1718652676723,-1341.35,0.00022739,3]
[329762419,1718652676733,-500.0,0.00022739,3]
[329762420,1718652676745,-937.08,0.00022739,3]
[329762421,1718652676755,-6695.68,0.00022739,3]
[329762422,1718652676765,-731.64,0.00022739,3]
[329762423,1718652676775,-11844.61,0.00022739,3]
[329762424,1718652676784,-176.8421399,0.00022739,3]
[329762425,1718652676794,-7967.62,0.00022739,3]
[329762426,1718652676804,-563.29,0.00022739,3]
[329762427,1718652676813,-2222.04,0.00022739,3]
[329762428,1718652676823,-6941.96,0.00022739,3]
[329762429,1718652676833,-500.0,0.00022739,3]
[329762430,1718652676842,-1168.48,0.00022739,3]
[329762431,1718652676852,-500.0,0.00022739,3]
[329762432,1718652676861,-2360.12,0.00022739,3]
[329762433,1718652676871,-1350.2,0.00022739,3]
[329762434,1718652676880,-1584.78,0.00022739,3]
[329762435,1718652676889,-2267.35,0.00022739,3]
[329762436,1718652676899,-1605.62,0.00022739,3]
[329762437,1718652676909,-11792.81,0.00022739,3]
[329762438,1718652676919,-500.0,0.00022739,3]
[329762439,1718652676928,-500.0,0.00022739,3]
[329762440,1718652676938,-151.0,0.00022739,7]
[329762441,1718652676947,-151.0,0.00022739,7]
[329762442,1718652676957,-948.84,0.00022739,3]
[329762443,1718652676966,-500.0,0.00022739,3]
[329762444,1718652676976,-625.4,0.00022739,3]
[329762445,1718652676986,-1436.93,0.00022739,3]
[329762446,1718652676999,-500.0,0.00022739,3]
[329762447,1718652677008,-896.77,0.00022739,3]
[329762448,1718652677019,-500.0,0.00022739,3]
[329762449,1718652677028,-8144.54,0.00022739,3]
[329762450,1718652677038,-500.0,0.00022739,3]
[329762451,1718652677047,-5573.5,0.00022739,3]
[329762452,1718652677057,-568.31,0.00022739,3]
[329762453,1718652677066,-5300.86,0.00022739,3]
[329762454,1718652677075,-18257.99,0.00022739,3]
[329762455,1718652677084,-1287.3,0.00022739,3]
[329762456,1718652677094,-500.0,0.00022739,3]
[329762457,1718652677104,-500.0,0.00022739,3]
[329762458,1718652677113,-593.72,0.00022739,3]
[329762459,1718652677123,-11268.82,0.00022739,3]
[329762460,1718652677132,-672.25,0.00022739,3]
[329762461,1718652677142,-596.43,0.00022739,3]
[329762462,1718652677156,-1121.85,0.00022739,3]
[329762463,1718652677166,-2558.37,0.00022739,3]
[329762464,1718652677176,-58402.97,0.00022739,3]
[329762465,1718652677185,-932.64,0.00022739,3]
[329762466,1718652677195,-25819.81,0.00022739,3]
[329762467,1718652677204,-3016.45,0.00022739,3]
[329762468,1718652677213,-500.0,0.00022739,3]
[329762469,1718652677224,-6238.81,0.00022739,3]
[329762470,1718652677235,-598.98681547,0.00022739,3]
[329762471,1718652677246,-442.80639751,0.00022739,3]
[329762472,1718652677256,-605.0,0.00022739,3]
[329762473,1718652677266,-526.97,0.00022739,3]
[329762474,1718652677276,-1288.32,0.00022739,3]
[329762475,1718652677286,-3323.86,0.00022739,3]
[329762476,1718652677295,-765.06,0.00022739,3]
[329762477,1718652677305,-1167.74,0.00022739,3]
[329762478,1718652677315,-3413.96,0.00022739,3]
[329762479,1718652677325,-4538.39,0.00022739,3]
[329762480,1718652677335,-910.13,0.00022739,3]
[329762481,1718652677344,-500.0,0.00022739,3]
[329762482,1718652677353,-12854.94,0.00022739,3]
[329762483,1718652677363,-500.0,0.00022739,3]
[329762484,1718652677372,-500.0,0.00022739,3]
[329762485,1718652677382,-687.95,0.00022739,3]
[329762486,1718652677391,-1181.39,0.00022739,3]
[329762487,1718652677401,-500.0,0.00022739,3]
[329762488,1718652677410,-2666.56,0.00022739,3]
[329762489,1718652677420,-500.0,0.00022739,3]
[329762490,1718652677429,-17417.98,0.00022739,3]
[329762491,1718652677439,-500.0,0.00022739,3]
[329762492,1718652677448,-3029.95,0.00022739,3]
[329762493,1718652677457,-1812.25,0.00022739,3]
[329762494,1718652677467,-500.0,0.00022739,3]
[329762495,1718652677478,-865.91,0.00022739,3]
[329762496,1718652677487,-905.04,0.00022739,3]
[329762497,1718652677498,-1323.78,0.00022739,3]
[329762498,1718652677508,-2367.41,0.00022739,3]
[329762499,1718652677518,-500.0,0.00022739,3]
[329762500,1718652677528,-6133.27,0.00022739,3]
[329762501,1718652677537,-3633.83,0.00022739,3]
[329762502,1718652677546,-5271.46,0.00022739,3]
[329762503,1718652677556,-500.0,0.00022739,3]
[329762504,1718652677566,-2566.78,0.00022739,3]
[329762505,1718652677575,-4997.89,0.00022739,3]
[329762506,1718652677585,-2304.26,0.00022739,3]
[329762507,1718652677595,-500.0,0.00022739,3]
[329762508,1718652677605,-1331.12,0.00022739,3]
[329762509,1718652677614,-500.0,0.00022739,3]
[329762510,1718652677624,-698.87,0.00022739,3]
[329762511,1718652677633,-9421.9,0.00022739,3]
[329762512,1718652677643,-500.0,0.00022739,3]
[329762513,1718652677653,-3911.56,0.00022739,3]
[329762514,1718652677662,-6695.58,0.00022739,3]
[329762515,1718652677672,-1343.54,0.00022739,3]
[329762516,1718652677681,-500.0,0.00022739,3]
[329762517,1718652677691,-278.370455,0.00022739,7]
[329762518,1718652677700,-278.370455,0.00022739,7]
[329762519,1718652677709,-12780.91,0.00022739,3]
[329762520,1718652677719,-500.0,0.00022739,3]
[329762521,1718652677728,-500.0,0.00022739,3]
[329762522,1718652677738,-500.0,0.00022739,3]
[329762523,1718652677749,-500.0,0.00022739,3]
[329762524,1718652677759,-4687.73,0.00022739,3]
[329762525,1718652677767,-1261.66,0.00022739,3]
[329762526,1718652677776,-278.370455,0.00022739,7]
[329762527,1718652677785,-278.370455,0.00022739,7]
[329762528,1718652677795,-500.0,0.00022739,3]
[329762529,1718652677805,-1388.21,0.00022739,3]
[329762530,1718652677814,-500.0,0.00022739,3]
[329762531,1718652677824,-1157.07,0.00022739,3]
[329762532,1718652677834,-500.0,0.00022739,3]
[329762533,1718652677843,-439.9700496,0.00022739,3]
[329762534,1718652677852,-3085.47,0.00022739,3]
[329762535,1718652677862,-934.49,0.00022739,3]
[329762536,1718652677871,-8367.66,0.00022739,3]
[329762537,1718652677881,-634.83,0.00022739,3]
[329762538,1718652677891,-2752.73,0.00022739,3]
[329762539,1718652677901,-4794.57,0.00022739,3]
[329762540,1718652677911,-5115.85,0.00022739,3]
[329762541,1718652677920,-500.0,0.00022739,3]
[329762542,1718652677930,-500.0,0.00022739,3]
[329762543,1718652677939,-1086.64,0.00022739,3]
[329762544,1718652677949,-2566.56,0.00022739,3]
[329762545,1718652677958,-500.0,0.00022739,3]
[329762546,1718652677968,-1013.85,0.00022739,3]
[329762547,1718652677978,-2755.64,0.00022739,3]
[329762548,1718652677987,-1214.89,0.00022739,3]
[329762549,1718652677998,-4838.32,0.00022739,3]
[329762550,1718652678007,-532.49897913,0.00022739,3]
[329762551,1718652678016,-1475.96,0.00022739,3]
[329762552,1718652678025,-500.0,0.00022739,3]
[329762553,1718652678035,-1878.91,0.00022739,3]
[329762554,1718652678045,-5872.68,0.00022739,3]
[329762555,1718652678055,-500.0,0.00022739,3]
[329762556,1718652678064,-1232.69,0.00022739,3]
[329762557,1718652678074,-500.0,0.00022739,3]
[329762558,1718652678084,-500.0,0.00022739,3]
[329762559,1718652678094,-6930.55,0.00022739,3]
[329762560,1718652678103,-1467.78,0.00022739,3]
[329762561,1718652678113,-7423.52,0.00022739,3]
[329762562,1718652678123,-500.0,0.00022739,3]
[329762563,1718652678133,-1861.86,0.00022739,3]
[329762564,1718652678142,-500.0,0.00022739,3]
[329762565,1718652678151,-500.0,0.00022739,3]
[329762566,1718652678166,-1841.11,0.00022739,3]
[329762567,1718652678176,-3285.88,0.00022739,3]
[329762568,1718652678186,-15277.92,0.00022739,3]
[329762569,1718652678195,-500.0,0.00022739,3]
[329762570,1718652678206,-1481.39,0.00022739,3]
[329762571,1718652678215,-1316.87,0.00022739,3]
[329762572,1718652678224,-1436.92,0.00022739,3]
[329762573,1718652678234,-500.0,0.00022739,3]
[329762574,1718652678246,-561.21,0.00022739,3]
[329762575,1718652678256,-1533.9,0.00022739,3]
[329762576,1718652678265,-3920.2,0.00022739,3]
[329762577,1718652678274,-9823.4,0.00022739,3]
[329762578,1718652678284,-4239.08,0.00022739,3]
[329762579,1718652678293,-2167.64,0.00022739,3]
[329762580,1718652678302,-3015.6,0.00022739,3]
[329762581,1718652678311,-500.0,0.00022739,3]
[329762582,1718652678322,-653.63,0.00022739,3]
[329762583,1718652678332,-500.0,0.00022739,3]
[329762584,1718652678342,-500.0,0.00022739,3]
[329762585,1718652678351,-643.24674273,0.00022739,3]
[329762586,1718652678361,-500.0,0.00022739,3]
[329762587,1718652678370,-2443.9,0.00022739,3]
[329762588,1718652678379,-500.0,0.00022739,3]
[329762589,1718652678388,-1678.83,0.00022739,3]
[329762590,1718652678398,-500.0,0.00022739,3]
[329762591,1718652678407,-645.9,0.00022739,3]
[329762592,1718652678417,-6537.56,0.00022739,3]
[329762593,1718652678426,-2210.89,0.00022739,3]
[329762594,1718652678435,-1159.17,0.00022739,3]
[329762595,1718652678445,-1347.13,0.00022739,3]
[329762596,1718652678454,-500.0,0.00022739,3]
[329762597,1718652678464,-3726.66,0.00022739,3]
[329762598,1718652678473,-2107.85,0.00022739,3]
[329762599,1718652678483,-1426.27,0.00022739,3]
[329762600,1718652678492,-500.0,0.00022739,3]